Workbook

Sheet Score Tracker
B1: Enter Your Scores Here
C3: Class | D3: Type | E3: Description | F3: Score
C4: Modern French | D4: Homework | E4: WW II History | F4: 80%
C5: Advanced Programming in Java | D5: Midterm | F5: 75%
C6: Spanish | D6: Homework | F6: 50%
C7: Theoretical Physics | D7: Homework | F7: 95%
C8: Modern French | D8: Homework | E8: WW I History | F8: 90%
C9: Modern French | D9: Homework | E9: Pages 30 - 41 | F9: 80%
C10: Composition | D10: Essay | E10: Persuasion paper | F10: 95%
C11: Mathematics 1 | D11: Homework | E11: Pages 21 & 26 | F11: 80%
C12: Mathematics 2 | D12: Homework | E12: Pages 15 & 18 | F12: 85%
C13: Mathematics 1 | D13: Homework | E13: Pages 34 - 36 | F13: 80%
C14: Mathematics 2 | D14: Quiz | F14: 95%

Sheet Your Performance
B1: Your Performance
C3: Totals
C4: ="Hours: "&SUM(tblClasses[Credit Hours]) -> Hours: 24 | D4: =AVERAGE(D7:D31) -> 81% | E4: =AVERAGE(E7:E31) -> 2.71 | F4: =SUM(F7:F31) -> 2.63 | G4: =IFERROR(HLOOKUP(D4,lstGPAMapping,2),"") -> B-
C6: Classes | D6: % | E6: GPA | F6: wGPA | G6: Letter | H6: Overall Performance
C7: =Calculations!C6 -> Modern French | D7: =Calculations!AL6 -> 83% | E7: =Calculations!AM6 -> 3.00 | F7: =IFERROR(E7*Settings!D9/SUM(tblClasses[Credit Hours]),"") -> 0.38 | G7: =Calculations!AN6 -> B
C8: =Calculations!C7 -> Theoretical Physics | D8: =Calculations!AL7 -> 95% | E8: =Calculations!AM7 -> 4.00 | F8: =IFERROR(E8*Settings!D10/SUM(tblClasses[Credit Hours]),"") -> 0.50 | G8: =Calculations!AN7 -> A
C9: =Calculations!C8 -> Mathematics 1 | D9: =Calculations!AL8 -> 80% | E9: =Calculations!AM8 -> 2.67 | F9: =IFERROR(E9*Settings!D11/SUM(tblClasses[Credit Hours]),"") -> 0.45 | G9: =Calculations!AN8 -> B-
C10: =Calculations!C9 -> Mathematics 2 | D10: =Calculations!AL9 -> 89% | E10: =Calculations!AM9 -> 3.33 | F10: =IFERROR(E10*Settings!D12/SUM(tblClasses[Credit Hours]),"") -> 0.56 | G10: =Calculations!AN9 -> B+
C11: =Calculations!C10 -> Advanced Programming in Java | D11: =Calculations!AL10 -> 75% | E11: =Calculations!AM10 -> 2.00 | F11: =IFERROR(E11*Settings!D13/SUM(tblClasses[Credit Hours]),"") -> 0.42 | G11: =Calculations!AN10 -> C
C12: =Calculations!C11 -> Spanish | D12: =Calculations!AL11 -> 50% | E12: =Calculations!AM11 -> 0.00 | F12: =IFERROR(E12*Settings!D14/SUM(tblClasses[Credit Hours]),"") -> 0.00 | G12: =Calculations!AN11 -> F
C13: =Calculations!C12 -> Composition | D13: =Calculations!AL12 -> 95% | E13: =Calculations!AM12 -> 4.00 | F13: =IFERROR(E13*Settings!D15/SUM(tblClasses[Credit Hours]),"") -> 0.33 | G13: =Calculations!AN12 -> A
C14: =Calculations!C13 ->  | D14: =Calculations!AL13 ->  | E14: =Calculations!AM13 ->  | F14: =IFERROR(E14*Settings!D16/SUM(tblClasses[Credit Hours]),"") ->  | G14: =Calculations!AN13 -> 
C15: =Calculations!C14 ->  | D15: =Calculations!AL14 ->  | E15: =Calculations!AM14 ->  | F15: =IFERROR(E15*Settings!D17/SUM(tblClasses[Credit Hours]),"") ->  | G15: =Calculations!AN14 -> 
C16: =Calculations!C15 ->  | D16: =Calculations!AL15 ->  | E16: =Calculations!AM15 ->  | F16: =IFERROR(E16*Settings!D18/SUM(tblClasses[Credit Hours]),"") ->  | G16: =Calculations!AN15 -> 
C17: =Calculations!C16 ->  | D17: =Calculations!AL16 ->  | E17: =Calculations!AM16 ->  | F17: =IFERROR(E17*Settings!D19/SUM(tblClasses[Credit Hours]),"") ->  | G17: =Calculations!AN16 -> 
C18: =Calculations!C17 ->  | D18: =Calculations!AL17 ->  | E18: =Calculations!AM17 ->  | F18: =IFERROR(E18*Settings!D20/SUM(tblClasses[Credit Hours]),"") ->  | G18: =Calculations!AN17 -> 
C19: =Calculations!C18 ->  | D19: =Calculations!AL18 ->  | E19: =Calculations!AM18 ->  | F19: =IFERROR(E19*Settings!D21/SUM(tblClasses[Credit Hours]),"") ->  | G19: =Calculations!AN18 -> 
C20: =Calculations!C19 ->  | D20: =Calculations!AL19 ->  | E20: =Calculations!AM19 ->  | F20: =IFERROR(E20*Settings!D22/SUM(tblClasses[Credit Hours]),"") ->  | G20: =Calculations!AN19 -> 
C21: =Calculations!C20 ->  | D21: =Calculations!AL20 ->  | E21: =Calculations!AM20 ->  | F21: =IFERROR(E21*Settings!D23/SUM(tblClasses[Credit Hours]),"") ->  | G21: =Calculations!AN20 -> 
C22: =Calculations!C21 ->  | D22: =Calculations!AL21 ->  | E22: =Calculations!AM21 ->  | F22: =IFERROR(E22*Settings!D24/SUM(tblClasses[Credit Hours]),"") ->  | G22: =Calculations!AN21 -> 
C23: =Calculations!C22 ->  | D23: =Calculations!AL22 ->  | E23: =Calculations!AM22 ->  | F23: =IFERROR(E23*Settings!D25/SUM(tblClasses[Credit Hours]),"") ->  | G23: =Calculations!AN22 -> 
C24: =Calculations!C23 ->  | D24: =Calculations!AL23 ->  | E24: =Calculations!AM23 ->  | F24: =IFERROR(E24*Settings!D26/SUM(tblClasses[Credit Hours]),"") ->  | G24: =Calculations!AN23 -> 
C25: =Calculations!C24 ->  | D25: =Calculations!AL24 ->  | E25: =Calculations!AM24 ->  | F25: =IFERROR(E25*Settings!D27/SUM(tblClasses[Credit Hours]),"") ->  | G25: =Calculations!AN24 -> 
C26: =Calculations!C25 ->  | D26: =Calculations!AL25 ->  | E26: =Calculations!AM25 ->  | F26: =IFERROR(E26*Settings!D28/SUM(tblClasses[Credit Hours]),"") ->  | G26: =Calculations!AN25 -> 
C27: =Calculations!C26 ->  | D27: =Calculations!AL26 ->  | E27: =Calculations!AM26 ->  | F27: =IFERROR(E27*Settings!D29/SUM(tblClasses[Credit Hours]),"") ->  | G27: =Calculations!AN26 -> 
C28: =Calculations!C27 ->  | D28: =Calculations!AL27 ->  | E28: =Calculations!AM27 ->  | F28: =IFERROR(E28*Settings!D30/SUM(tblClasses[Credit Hours]),"") ->  | G28: =Calculations!AN27 -> 
C29: =Calculations!C28 ->  | D29: =Calculations!AL28 ->  | E29: =Calculations!AM28 ->  | F29: =IFERROR(E29*Settings!D31/SUM(tblClasses[Credit Hours]),"") ->  | G29: =Calculations!AN28 -> 
C30: =Calculations!C29 ->  | D30: =Calculations!AL29 ->  | E30: =Calculations!AM29 ->  | F30: =IFERROR(E30*Settings!D32/SUM(tblClasses[Credit Hours]),"") ->  | G30: =Calculations!AN29 -> 
C31: =Calculations!C30 ->  | D31: =Calculations!AL30 ->  | E31: =Calculations!AM30 ->  | F31: =IFERROR(E31*Settings!D33/SUM(tblClasses[Credit Hours]),"") ->  | G31: =Calculations!AN30 -> 

Sheet Settings
B1: Settings
C2: Scores and GPA mapping
C3: Percentage | D3: 0% | E3: 60% | F3: 63% | G3: 67% | H3: 70% | I3: 73% | J3: 77% | K3: 80% | L3: 83% | M3: 87% | N3: 90% | O3: 93% | P3: 97%
C4: Letter Grade | D4: F | E4: D- | F4: D | G4: D+ | H4: C- | I4: C | J4: C+ | K4: B- | L4: B | M4: B+ | N4: A- | O4: A | P4: A+
C5: GPA | D5: 0 | E5: 0.67 | F5: 1 | G5: 1.33 | H5: 1.67 | I5: 2 | J5: 2.33 | K5: 2.67 | L5: 3 | M5: 3.33 | N5: 3.67 | O5: 4 | P5: 4
C7: Weighted scores for up to 25 classes
C8: Classes you are taking | D8: Credit Hours | E8: Homework | F8: Essay | G8: Quiz | H8: Project | I8: Midterm | J8: Final Exam | K8: Other | L8: % Total
C9: Modern French | D9: 3.0 | E9: 10% | F9: 15% | G9: 15% | H9: 10% | I9: 20% | J9: 30% | L9: =SUM(tblClasses[[#This Row],[Homework]:[Other]]) -> 100%
C10: Theoretical Physics | D10: 3.0 | E10: 15% | F10: 15% | G10: 10% | H10: 10% | I10: 15% | J10: 30% | K10: 5% | L10: =SUM(tblClasses[[#This Row],[Homework]:[Other]]) -> 100%
C11: Mathematics 1 | D11: 4.0 | E11: 10% | F11: 15% | G11: 15% | H11: 10% | I11: 20% | J11: 30% | L11: =SUM(tblClasses[[#This Row],[Homework]:[Other]]) -> 100%
C12: Mathematics 2 | D12: 4.0 | E12: 15% | F12: 15% | G12: 10% | H12: 10% | I12: 15% | J12: 30% | K12: 5% | L12: =SUM(tblClasses[[#This Row],[Homework]:[Other]]) -> 100%
C13: Advanced Programming in Java | D13: 5.0 | E13: 15% | F13: 15% | G13: 10% | H13: 10% | I13: 20% | J13: 30% | L13: =SUM(tblClasses[[#This Row],[Homework]:[Other]]) -> 100%
C14: Spanish | D14: 3.0 | E14: 10% | F14: 15% | G14: 17% | H14: 13% | I14: 20% | J14: 20% | K14: 5% | L14: =SUM(tblClasses[[#This Row],[Homework]:[Other]]) -> 100%
C15: Composition | D15: 2.0 | E15: 15% | F15: 15% | G15: 12% | H15: 15% | I15: 15% | J15: 25% | K15: 3% | L15: =SUM(tblClasses[[#This Row],[Homework]:[Other]]) -> 100%

Sheet Calculations (hidden)
B1: Calculations
C2: This worksheet provides calculations for your grades & GPA and should remain hidden. Any changes to this sheet could result in errors.
C4: Current Class List | D4: Scores (out of 1) | AC4: Grade Calculation
C5: Class | D5: 1 | E5: 2 | F5: 3 | G5: 4 | H5: 5 | I5: 6 | J5: 7 | K5: 8 | L5: 9 | M5: 10 | N5: 11 | O5: 12 | P5: 13 | Q5: 14 | R5: 15 | S5: 16 | T5: 17 | U5: 18 | V5: 19 | W5: 20 | X5: 21 | Y5: 22 | Z5: 23 | AA5: 24 | AB5: 25 | AC5: =tblClasses[[#Headers],[Homework]] -> Homework | AD5: =tblClasses[[#Headers],[Essay]] -> Essay | AE5: =tblClasses[[#Headers],[Quiz]] -> Quiz | AF5: =tblClasses[[#Headers],[Project]] -> Project | AG5: =tblClasses[[#Headers],[Midterm]] -> Midterm | AH5: =tblClasses[[#Headers],[Final Exam]] -> Final Exam | AI5: =tblClasses[[#Headers],[Other]] -> Other | AJ5: Total | AK5: Total Possible Points | AL5: Total % | AM5: Grade Point | AN5: Letter Grade
C6: =IF(Settings!C9="","",Settings!C9) -> Modern French | D6: =IFERROR(INDEX(tblClassScores[],MATCH($C6:$C30&D$5:AB$5,Calculations!$C$33:$C$657,0),4),"") -> 80% | E6: 90% | F6: 80% | AC6: =IFERROR(AVERAGEIFS(tblClassScores[Score],tblClassScores[Class],Calculations!$C6,tblClassScores[Type],Calculations!AC$5)*Settings!E9,"") -> 0.08333333333 | AD6: =IFERROR(AVERAGEIFS(tblClassScores[Score],tblClassScores[Class],Calculations!$C6,tblClassScores[Type],Calculations!AD$5)*Settings!F9,"") ->  | AE6: =IFERROR(AVERAGEIFS(tblClassScores[Score],tblClassScores[Class],Calculations!$C6,tblClassScores[Type],Calculations!AE$5)*Settings!G9,"") ->  | AF6: =IFERROR(AVERAGEIFS(tblClassScores[Score],tblClassScores[Class],Calculations!$C6,tblClassScores[Type],Calculations!AF$5)*Settings!H9,"") ->  | AG6: =IFERROR(AVERAGEIFS(tblClassScores[Score],tblClassScores[Class],Calculations!$C6,tblClassScores[Type],Calculations!AG$5)*Settings!I9,"") ->  | AH6: =IFERROR(AVERAGEIFS(tblClassScores[Score],tblClassScores[Class],Calculations!$C6,tblClassScores[Type],Calculations!AH$5)*Settings!J9,"") ->  | AI6: =IFERROR(AVERAGEIFS(tblClassScores[Score],tblClassScores[Class],Calculations!$C6,tblClassScores[Type],Calculations!AI$5)*Settings!K9,"") ->  | AJ6: =SUM(AC6:AI6) -> 0.08333333333 | AK6: =SUMIFS(Settings!E9:K9,Calculations!AC6:AI6,">0") -> 0.1 | AL6: =IFERROR(AJ6/AK6,"") -> 83% | AM6: =IFERROR(HLOOKUP(AL6,lstGPAMapping,3),"") -> 3 | AN6: =IFERROR(HLOOKUP(AL6,lstGPAMapping,2),"") -> B
C7: =IF(Settings!C10="","",Settings!C10) -> Theoretical Physics | D7: 95% | AC7: =IFERROR(AVERAGEIFS(tblClassScores[Score],tblClassScores[Class],Calculations!$C7,tblClassScores[Type],Calculations!AC$5)*Settings!E10,"") -> 0.1425 | AD7: =IFERROR(AVERAGEIFS(tblClassScores[Score],tblClassScores[Class],Calculations!$C7,tblClassScores[Type],Calculations!AD$5)*Settings!F10,"") ->  | AE7: =IFERROR(AVERAGEIFS(tblClassScores[Score],tblClassScores[Class],Calculations!$C7,tblClassScores[Type],Calculations!AE$5)*Settings!G10,"") ->  | AF7: =IFERROR(AVERAGEIFS(tblClassScores[Score],tblClassScores[Class],Calculations!$C7,tblClassScores[Type],Calculations!AF$5)*Settings!H10,"") ->  | AG7: =IFERROR(AVERAGEIFS(tblClassScores[Score],tblClassScores[Class],Calculations!$C7,tblClassScores[Type],Calculations!AG$5)*Settings!I10,"") ->  | AH7: =IFERROR(AVERAGEIFS(tblClassScores[Score],tblClassScores[Class],Calculations!$C7,tblClassScores[Type],Calculations!AH$5)*Settings!J10,"") ->  | AI7: =IFERROR(AVERAGEIFS(tblClassScores[Score],tblClassScores[Class],Calculations!$C7,tblClassScores[Type],Calculations!AI$5)*Settings!K10,"") ->  | AJ7: =SUM(AC7:AI7) -> 0.1425 | AK7: =SUMIFS(Settings!E10:K10,Calculations!AC7:AI7,">0") -> 0.15 | AL7: =IFERROR(AJ7/AK7,"") -> 95% | AM7: 4 | AN7: A
C8: =IF(Settings!C11="","",Settings!C11) -> Mathematics 1 | D8: 80% | E8: 80% | AC8: =IFERROR(AVERAGEIFS(tblClassScores[Score],tblClassScores[Class],Calculations!$C8,tblClassScores[Type],Calculations!AC$5)*Settings!E11,"") -> 0.08 | AD8: =IFERROR(AVERAGEIFS(tblClassScores[Score],tblClassScores[Class],Calculations!$C8,tblClassScores[Type],Calculations!AD$5)*Settings!F11,"") ->  | AE8: =IFERROR(AVERAGEIFS(tblClassScores[Score],tblClassScores[Class],Calculations!$C8,tblClassScores[Type],Calculations!AE$5)*Settings!G11,"") ->  | AF8: =IFERROR(AVERAGEIFS(tblClassScores[Score],tblClassScores[Class],Calculations!$C8,tblClassScores[Type],Calculations!AF$5)*Settings!H11,"") ->  | AG8: =IFERROR(AVERAGEIFS(tblClassScores[Score],tblClassScores[Class],Calculations!$C8,tblClassScores[Type],Calculations!AG$5)*Settings!I11,"") ->  | AH8: =IFERROR(AVERAGEIFS(tblClassScores[Score],tblClassScores[Class],Calculations!$C8,tblClassScores[Type],Calculations!AH$5)*Settings!J11,"") ->  | AI8: =IFERROR(AVERAGEIFS(tblClassScores[Score],tblClassScores[Class],Calculations!$C8,tblClassScores[Type],Calculations!AI$5)*Settings!K11,"") ->  | AJ8: 0.08 | AK8: =SUMIFS(Settings!E11:K11,Calculations!AC8:AI8,">0") -> 0.1 | AL8: 80% | AM8: 2.67 | AN8: B-
C9: =IF(Settings!C12="","",Settings!C12) -> Mathematics 2 | D9: 85% | E9: 95% | AC9: =IFERROR(AVERAGEIFS(tblClassScores[Score],tblClassScores[Class],Calculations!$C9,tblClassScores[Type],Calculations!AC$5)*Settings!E12,"") -> 0.1275 | AD9: =IFERROR(AVERAGEIFS(tblClassScores[Score],tblClassScores[Class],Calculations!$C9,tblClassScores[Type],Calculations!AD$5)*Settings!F12,"") ->  | AE9: =IFERROR(AVERAGEIFS(tblClassScores[Score],tblClassScores[Class],Calculations!$C9,tblClassScores[Type],Calculations!AE$5)*Settings!G12,"") -> 0.095 | AF9: =IFERROR(AVERAGEIFS(tblClassScores[Score],tblClassScores[Class],Calculations!$C9,tblClassScores[Type],Calculations!AF$5)*Settings!H12,"") ->  | AG9: =IFERROR(AVERAGEIFS(tblClassScores[Score],tblClassScores[Class],Calculations!$C9,tblClassScores[Type],Calculations!AG$5)*Settings!I12,"") ->  | AH9: =IFERROR(AVERAGEIFS(tblClassScores[Score],tblClassScores[Class],Calculations!$C9,tblClassScores[Type],Calculations!AH$5)*Settings!J12,"") ->  | AI9: =IFERROR(AVERAGEIFS(tblClassScores[Score],tblClassScores[Class],Calculations!$C9,tblClassScores[Type],Calculations!AI$5)*Settings!K12,"") ->  | AJ9: 0.2225 | AK9: =SUMIFS(Settings!E12:K12,Calculations!AC9:AI9,">0") -> 0.25 | AL9: 89% | AM9: 3.33 | AN9: B+
C10: =IF(Settings!C13="","",Settings!C13) -> Advanced Programming in Java | D10: 75% | AC10: =IFERROR(AVERAGEIFS(tblClassScores[Score],tblClassScores[Class],Calculations!$C10,tblClassScores[Type],Calculations!AC$5)*Settings!E13,"") ->  | AD10: =IFERROR(AVERAGEIFS(tblClassScores[Score],tblClassScores[Class],Calculations!$C10,tblClassScores[Type],Calculations!AD$5)*Settings!F13,"") ->  | AE10: =IFERROR(AVERAGEIFS(tblClassScores[Score],tblClassScores[Class],Calculations!$C10,tblClassScores[Type],Calculations!AE$5)*Settings!G13,"") ->  | AF10: =IFERROR(AVERAGEIFS(tblClassScores[Score],tblClassScores[Class],Calculations!$C10,tblClassScores[Type],Calculations!AF$5)*Settings!H13,"") ->  | AG10: =IFERROR(AVERAGEIFS(tblClassScores[Score],tblClassScores[Class],Calculations!$C10,tblClassScores[Type],Calculations!AG$5)*Settings!I13,"") -> 0.15 | AH10: =IFERROR(AVERAGEIFS(tblClassScores[Score],tblClassScores[Class],Calculations!$C10,tblClassScores[Type],Calculations!AH$5)*Settings!J13,"") ->  | AI10: =IFERROR(AVERAGEIFS(tblClassScores[Score],tblClassScores[Class],Calculations!$C10,tblClassScores[Type],Calculations!AI$5)*Settings!K13,"") ->  | AJ10: 0.15 | AK10: =SUMIFS(Settings!E13:K13,Calculations!AC10:AI10,">0") -> 0.2 | AL10: 75% | AM10: 2 | AN10: C
C11: =IF(Settings!C14="","",Settings!C14) -> Spanish | D11: 50% | AC11: =IFERROR(AVERAGEIFS(tblClassScores[Score],tblClassScores[Class],Calculations!$C11,tblClassScores[Type],Calculations!AC$5)*Settings!E14,"") -> 0.05 | AD11: =IFERROR(AVERAGEIFS(tblClassScores[Score],tblClassScores[Class],Calculations!$C11,tblClassScores[Type],Calculations!AD$5)*Settings!F14,"") ->  | AE11: =IFERROR(AVERAGEIFS(tblClassScores[Score],tblClassScores[Class],Calculations!$C11,tblClassScores[Type],Calculations!AE$5)*Settings!G14,"") ->  | AF11: =IFERROR(AVERAGEIFS(tblClassScores[Score],tblClassScores[Class],Calculations!$C11,tblClassScores[Type],Calculations!AF$5)*Settings!H14,"") ->  | AG11: =IFERROR(AVERAGEIFS(tblClassScores[Score],tblClassScores[Class],Calculations!$C11,tblClassScores[Type],Calculations!AG$5)*Settings!I14,"") ->  | AH11: =IFERROR(AVERAGEIFS(tblClassScores[Score],tblClassScores[Class],Calculations!$C11,tblClassScores[Type],Calculations!AH$5)*Settings!J14,"") ->  | AI11: =IFERROR(AVERAGEIFS(tblClassScores[Score],tblClassScores[Class],Calculations!$C11,tblClassScores[Type],Calculations!AI$5)*Settings!K14,"") ->  | AJ11: 0.05 | AK11: =SUMIFS(Settings!E14:K14,Calculations!AC11:AI11,">0") -> 0.1 | AL11: 50% | AM11: 0 | AN11: F
C12: =IF(Settings!C15="","",Settings!C15) -> Composition | D12: 95% | AC12: =IFERROR(AVERAGEIFS(tblClassScores[Score],tblClassScores[Class],Calculations!$C12,tblClassScores[Type],Calculations!AC$5)*Settings!E15,"") ->  | AD12: =IFERROR(AVERAGEIFS(tblClassScores[Score],tblClassScores[Class],Calculations!$C12,tblClassScores[Type],Calculations!AD$5)*Settings!F15,"") -> 0.1425 | AE12: =IFERROR(AVERAGEIFS(tblClassScores[Score],tblClassScores[Class],Calculations!$C12,tblClassScores[Type],Calculations!AE$5)*Settings!G15,"") ->  | AF12: =IFERROR(AVERAGEIFS(tblClassScores[Score],tblClassScores[Class],Calculations!$C12,tblClassScores[Type],Calculations!AF$5)*Settings!H15,"") ->  | AG12: =IFERROR(AVERAGEIFS(tblClassScores[Score],tblClassScores[Class],Calculations!$C12,tblClassScores[Type],Calculations!AG$5)*Settings!I15,"") ->  | AH12: =IFERROR(AVERAGEIFS(tblClassScores[Score],tblClassScores[Class],Calculations!$C12,tblClassScores[Type],Calculations!AH$5)*Settings!J15,"") ->  | AI12: =IFERROR(AVERAGEIFS(tblClassScores[Score],tblClassScores[Class],Calculations!$C12,tblClassScores[Type],Calculations!AI$5)*Settings!K15,"") ->  | AJ12: 0.1425 | AK12: =SUMIFS(Settings!E15:K15,Calculations!AC12:AI12,">0") -> 0.15 | AL12: 95% | AM12: 4 | AN12: A
C13: =IF(Settings!C16="","",Settings!C16) ->  | AC13: =IFERROR(AVERAGEIFS(tblClassScores[Score],tblClassScores[Class],Calculations!$C13,tblClassScores[Type],Calculations!AC$5)*Settings!E16,"") ->  | AD13: =IFERROR(AVERAGEIFS(tblClassScores[Score],tblClassScores[Class],Calculations!$C13,tblClassScores[Type],Calculations!AD$5)*Settings!F16,"") ->  | AE13: =IFERROR(AVERAGEIFS(tblClassScores[Score],tblClassScores[Class],Calculations!$C13,tblClassScores[Type],Calculations!AE$5)*Settings!G16,"") ->  | AF13: =IFERROR(AVERAGEIFS(tblClassScores[Score],tblClassScores[Class],Calculations!$C13,tblClassScores[Type],Calculations!AF$5)*Settings!H16,"") ->  | AG13: =IFERROR(AVERAGEIFS(tblClassScores[Score],tblClassScores[Class],Calculations!$C13,tblClassScores[Type],Calculations!AG$5)*Settings!I16,"") ->  | AH13: =IFERROR(AVERAGEIFS(tblClassScores[Score],tblClassScores[Class],Calculations!$C13,tblClassScores[Type],Calculations!AH$5)*Settings!J16,"") ->  | AI13: =IFERROR(AVERAGEIFS(tblClassScores[Score],tblClassScores[Class],Calculations!$C13,tblClassScores[Type],Calculations!AI$5)*Settings!K16,"") ->  | AJ13: 0 | AK13: =SUMIFS(Settings!E16:K16,Calculations!AC13:AI13,">0") -> 0
C14: =IF(Settings!C17="","",Settings!C17) ->  | AC14: =IFERROR(AVERAGEIFS(tblClassScores[Score],tblClassScores[Class],Calculations!$C14,tblClassScores[Type],Calculations!AC$5)*Settings!E17,"") ->  | AD14: =IFERROR(AVERAGEIFS(tblClassScores[Score],tblClassScores[Class],Calculations!$C14,tblClassScores[Type],Calculations!AD$5)*Settings!F17,"") ->  | AE14: =IFERROR(AVERAGEIFS(tblClassScores[Score],tblClassScores[Class],Calculations!$C14,tblClassScores[Type],Calculations!AE$5)*Settings!G17,"") ->  | AF14: =IFERROR(AVERAGEIFS(tblClassScores[Score],tblClassScores[Class],Calculations!$C14,tblClassScores[Type],Calculations!AF$5)*Settings!H17,"") ->  | AG14: =IFERROR(AVERAGEIFS(tblClassScores[Score],tblClassScores[Class],Calculations!$C14,tblClassScores[Type],Calculations!AG$5)*Settings!I17,"") ->  | AH14: =IFERROR(AVERAGEIFS(tblClassScores[Score],tblClassScores[Class],Calculations!$C14,tblClassScores[Type],Calculations!AH$5)*Settings!J17,"") ->  | AI14: =IFERROR(AVERAGEIFS(tblClassScores[Score],tblClassScores[Class],Calculations!$C14,tblClassScores[Type],Calculations!AI$5)*Settings!K17,"") ->  | AJ14: 0 | AK14: =SUMIFS(Settings!E17:K17,Calculations!AC14:AI14,">0") -> 0
C15: =IF(Settings!C18="","",Settings!C18) ->  | AC15: =IFERROR(AVERAGEIFS(tblClassScores[Score],tblClassScores[Class],Calculations!$C15,tblClassScores[Type],Calculations!AC$5)*Settings!E18,"") ->  | AD15: =IFERROR(AVERAGEIFS(tblClassScores[Score],tblClassScores[Class],Calculations!$C15,tblClassScores[Type],Calculations!AD$5)*Settings!F18,"") ->  | AE15: =IFERROR(AVERAGEIFS(tblClassScores[Score],tblClassScores[Class],Calculations!$C15,tblClassScores[Type],Calculations!AE$5)*Settings!G18,"") ->  | AF15: =IFERROR(AVERAGEIFS(tblClassScores[Score],tblClassScores[Class],Calculations!$C15,tblClassScores[Type],Calculations!AF$5)*Settings!H18,"") ->  | AG15: =IFERROR(AVERAGEIFS(tblClassScores[Score],tblClassScores[Class],Calculations!$C15,tblClassScores[Type],Calculations!AG$5)*Settings!I18,"") ->  | AH15: =IFERROR(AVERAGEIFS(tblClassScores[Score],tblClassScores[Class],Calculations!$C15,tblClassScores[Type],Calculations!AH$5)*Settings!J18,"") ->  | AI15: =IFERROR(AVERAGEIFS(tblClassScores[Score],tblClassScores[Class],Calculations!$C15,tblClassScores[Type],Calculations!AI$5)*Settings!K18,"") ->  | AJ15: 0 | AK15: =SUMIFS(Settings!E18:K18,Calculations!AC15:AI15,">0") -> 0
C16: =IF(Settings!C19="","",Settings!C19) ->  | AC16: =IFERROR(AVERAGEIFS(tblClassScores[Score],tblClassScores[Class],Calculations!$C16,tblClassScores[Type],Calculations!AC$5)*Settings!E19,"") ->  | AD16: =IFERROR(AVERAGEIFS(tblClassScores[Score],tblClassScores[Class],Calculations!$C16,tblClassScores[Type],Calculations!AD$5)*Settings!F19,"") ->  | AE16: =IFERROR(AVERAGEIFS(tblClassScores[Score],tblClassScores[Class],Calculations!$C16,tblClassScores[Type],Calculations!AE$5)*Settings!G19,"") ->  | AF16: =IFERROR(AVERAGEIFS(tblClassScores[Score],tblClassScores[Class],Calculations!$C16,tblClassScores[Type],Calculations!AF$5)*Settings!H19,"") ->  | AG16: =IFERROR(AVERAGEIFS(tblClassScores[Score],tblClassScores[Class],Calculations!$C16,tblClassScores[Type],Calculations!AG$5)*Settings!I19,"") ->  | AH16: =IFERROR(AVERAGEIFS(tblClassScores[Score],tblClassScores[Class],Calculations!$C16,tblClassScores[Type],Calculations!AH$5)*Settings!J19,"") ->  | AI16: =IFERROR(AVERAGEIFS(tblClassScores[Score],tblClassScores[Class],Calculations!$C16,tblClassScores[Type],Calculations!AI$5)*Settings!K19,"") ->  | AJ16: 0 | AK16: =SUMIFS(Settings!E19:K19,Calculations!AC16:AI16,">0") -> 0
C17: =IF(Settings!C20="","",Settings!C20) ->  | AC17: =IFERROR(AVERAGEIFS(tblClassScores[Score],tblClassScores[Class],Calculations!$C17,tblClassScores[Type],Calculations!AC$5)*Settings!E20,"") ->  | AD17: =IFERROR(AVERAGEIFS(tblClassScores[Score],tblClassScores[Class],Calculations!$C17,tblClassScores[Type],Calculations!AD$5)*Settings!F20,"") ->  | AE17: =IFERROR(AVERAGEIFS(tblClassScores[Score],tblClassScores[Class],Calculations!$C17,tblClassScores[Type],Calculations!AE$5)*Settings!G20,"") ->  | AF17: =IFERROR(AVERAGEIFS(tblClassScores[Score],tblClassScores[Class],Calculations!$C17,tblClassScores[Type],Calculations!AF$5)*Settings!H20,"") ->  | AG17: =IFERROR(AVERAGEIFS(tblClassScores[Score],tblClassScores[Class],Calculations!$C17,tblClassScores[Type],Calculations!AG$5)*Settings!I20,"") ->  | AH17: =IFERROR(AVERAGEIFS(tblClassScores[Score],tblClassScores[Class],Calculations!$C17,tblClassScores[Type],Calculations!AH$5)*Settings!J20,"") ->  | AI17: =IFERROR(AVERAGEIFS(tblClassScores[Score],tblClassScores[Class],Calculations!$C17,tblClassScores[Type],Calculations!AI$5)*Settings!K20,"") ->  | AJ17: 0 | AK17: =SUMIFS(Settings!E20:K20,Calculations!AC17:AI17,">0") -> 0
C18: =IF(Settings!C21="","",Settings!C21) ->  | AC18: =IFERROR(AVERAGEIFS(tblClassScores[Score],tblClassScores[Class],Calculations!$C18,tblClassScores[Type],Calculations!AC$5)*Settings!E21,"") ->  | AD18: =IFERROR(AVERAGEIFS(tblClassScores[Score],tblClassScores[Class],Calculations!$C18,tblClassScores[Type],Calculations!AD$5)*Settings!F21,"") ->  | AE18: =IFERROR(AVERAGEIFS(tblClassScores[Score],tblClassScores[Class],Calculations!$C18,tblClassScores[Type],Calculations!AE$5)*Settings!G21,"") ->  | AF18: =IFERROR(AVERAGEIFS(tblClassScores[Score],tblClassScores[Class],Calculations!$C18,tblClassScores[Type],Calculations!AF$5)*Settings!H21,"") ->  | AG18: =IFERROR(AVERAGEIFS(tblClassScores[Score],tblClassScores[Class],Calculations!$C18,tblClassScores[Type],Calculations!AG$5)*Settings!I21,"") ->  | AH18: =IFERROR(AVERAGEIFS(tblClassScores[Score],tblClassScores[Class],Calculations!$C18,tblClassScores[Type],Calculations!AH$5)*Settings!J21,"") ->  | AI18: =IFERROR(AVERAGEIFS(tblClassScores[Score],tblClassScores[Class],Calculations!$C18,tblClassScores[Type],Calculations!AI$5)*Settings!K21,"") ->  | AJ18: 0 | AK18: =SUMIFS(Settings!E21:K21,Calculations!AC18:AI18,">0") -> 0
C19: =IF(Settings!C22="","",Settings!C22) ->  | AC19: =IFERROR(AVERAGEIFS(tblClassScores[Score],tblClassScores[Class],Calculations!$C19,tblClassScores[Type],Calculations!AC$5)*Settings!E22,"") ->  | AD19: =IFERROR(AVERAGEIFS(tblClassScores[Score],tblClassScores[Class],Calculations!$C19,tblClassScores[Type],Calculations!AD$5)*Settings!F22,"") ->  | AE19: =IFERROR(AVERAGEIFS(tblClassScores[Score],tblClassScores[Class],Calculations!$C19,tblClassScores[Type],Calculations!AE$5)*Settings!G22,"") ->  | AF19: =IFERROR(AVERAGEIFS(tblClassScores[Score],tblClassScores[Class],Calculations!$C19,tblClassScores[Type],Calculations!AF$5)*Settings!H22,"") ->  | AG19: =IFERROR(AVERAGEIFS(tblClassScores[Score],tblClassScores[Class],Calculations!$C19,tblClassScores[Type],Calculations!AG$5)*Settings!I22,"") ->  | AH19: =IFERROR(AVERAGEIFS(tblClassScores[Score],tblClassScores[Class],Calculations!$C19,tblClassScores[Type],Calculations!AH$5)*Settings!J22,"") ->  | AI19: =IFERROR(AVERAGEIFS(tblClassScores[Score],tblClassScores[Class],Calculations!$C19,tblClassScores[Type],Calculations!AI$5)*Settings!K22,"") ->  | AJ19: 0 | AK19: =SUMIFS(Settings!E22:K22,Calculations!AC19:AI19,">0") -> 0
C20: =IF(Settings!C23="","",Settings!C23) ->  | AC20: =IFERROR(AVERAGEIFS(tblClassScores[Score],tblClassScores[Class],Calculations!$C20,tblClassScores[Type],Calculations!AC$5)*Settings!E23,"") ->  | AD20: =IFERROR(AVERAGEIFS(tblClassScores[Score],tblClassScores[Class],Calculations!$C20,tblClassScores[Type],Calculations!AD$5)*Settings!F23,"") ->  | AE20: =IFERROR(AVERAGEIFS(tblClassScores[Score],tblClassScores[Class],Calculations!$C20,tblClassScores[Type],Calculations!AE$5)*Settings!G23,"") ->  | AF20: =IFERROR(AVERAGEIFS(tblClassScores[Score],tblClassScores[Class],Calculations!$C20,tblClassScores[Type],Calculations!AF$5)*Settings!H23,"") ->  | AG20: =IFERROR(AVERAGEIFS(tblClassScores[Score],tblClassScores[Class],Calculations!$C20,tblClassScores[Type],Calculations!AG$5)*Settings!I23,"") ->  | AH20: =IFERROR(AVERAGEIFS(tblClassScores[Score],tblClassScores[Class],Calculations!$C20,tblClassScores[Type],Calculations!AH$5)*Settings!J23,"") ->  | AI20: =IFERROR(AVERAGEIFS(tblClassScores[Score],tblClassScores[Class],Calculations!$C20,tblClassScores[Type],Calculations!AI$5)*Settings!K23,"") ->  | AJ20: 0 | AK20: =SUMIFS(Settings!E23:K23,Calculations!AC20:AI20,">0") -> 0
C21: =IF(Settings!C24="","",Settings!C24) ->  | AC21: =IFERROR(AVERAGEIFS(tblClassScores[Score],tblClassScores[Class],Calculations!$C21,tblClassScores[Type],Calculations!AC$5)*Settings!E24,"") ->  | AD21: =IFERROR(AVERAGEIFS(tblClassScores[Score],tblClassScores[Class],Calculations!$C21,tblClassScores[Type],Calculations!AD$5)*Settings!F24,"") ->  | AE21: =IFERROR(AVERAGEIFS(tblClassScores[Score],tblClassScores[Class],Calculations!$C21,tblClassScores[Type],Calculations!AE$5)*Settings!G24,"") ->  | AF21: =IFERROR(AVERAGEIFS(tblClassScores[Score],tblClassScores[Class],Calculations!$C21,tblClassScores[Type],Calculations!AF$5)*Settings!H24,"") ->  | AG21: =IFERROR(AVERAGEIFS(tblClassScores[Score],tblClassScores[Class],Calculations!$C21,tblClassScores[Type],Calculations!AG$5)*Settings!I24,"") ->  | AH21: =IFERROR(AVERAGEIFS(tblClassScores[Score],tblClassScores[Class],Calculations!$C21,tblClassScores[Type],Calculations!AH$5)*Settings!J24,"") ->  | AI21: =IFERROR(AVERAGEIFS(tblClassScores[Score],tblClassScores[Class],Calculations!$C21,tblClassScores[Type],Calculations!AI$5)*Settings!K24,"") ->  | AJ21: 0 | AK21: =SUMIFS(Settings!E24:K24,Calculations!AC21:AI21,">0") -> 0
C22: =IF(Settings!C25="","",Settings!C25) ->  | AC22: =IFERROR(AVERAGEIFS(tblClassScores[Score],tblClassScores[Class],Calculations!$C22,tblClassScores[Type],Calculations!AC$5)*Settings!E25,"") ->  | AD22: =IFERROR(AVERAGEIFS(tblClassScores[Score],tblClassScores[Class],Calculations!$C22,tblClassScores[Type],Calculations!AD$5)*Settings!F25,"") ->  | AE22: =IFERROR(AVERAGEIFS(tblClassScores[Score],tblClassScores[Class],Calculations!$C22,tblClassScores[Type],Calculations!AE$5)*Settings!G25,"") ->  | AF22: =IFERROR(AVERAGEIFS(tblClassScores[Score],tblClassScores[Class],Calculations!$C22,tblClassScores[Type],Calculations!AF$5)*Settings!H25,"") ->  | AG22: =IFERROR(AVERAGEIFS(tblClassScores[Score],tblClassScores[Class],Calculations!$C22,tblClassScores[Type],Calculations!AG$5)*Settings!I25,"") ->  | AH22: =IFERROR(AVERAGEIFS(tblClassScores[Score],tblClassScores[Class],Calculations!$C22,tblClassScores[Type],Calculations!AH$5)*Settings!J25,"") ->  | AI22: =IFERROR(AVERAGEIFS(tblClassScores[Score],tblClassScores[Class],Calculations!$C22,tblClassScores[Type],Calculations!AI$5)*Settings!K25,"") ->  | AJ22: 0 | AK22: =SUMIFS(Settings!E25:K25,Calculations!AC22:AI22,">0") -> 0
C23: =IF(Settings!C26="","",Settings!C26) ->  | AC23: =IFERROR(AVERAGEIFS(tblClassScores[Score],tblClassScores[Class],Calculations!$C23,tblClassScores[Type],Calculations!AC$5)*Settings!E26,"") ->  | AD23: =IFERROR(AVERAGEIFS(tblClassScores[Score],tblClassScores[Class],Calculations!$C23,tblClassScores[Type],Calculations!AD$5)*Settings!F26,"") ->  | AE23: =IFERROR(AVERAGEIFS(tblClassScores[Score],tblClassScores[Class],Calculations!$C23,tblClassScores[Type],Calculations!AE$5)*Settings!G26,"") ->  | AF23: =IFERROR(AVERAGEIFS(tblClassScores[Score],tblClassScores[Class],Calculations!$C23,tblClassScores[Type],Calculations!AF$5)*Settings!H26,"") ->  | AG23: =IFERROR(AVERAGEIFS(tblClassScores[Score],tblClassScores[Class],Calculations!$C23,tblClassScores[Type],Calculations!AG$5)*Settings!I26,"") ->  | AH23: =IFERROR(AVERAGEIFS(tblClassScores[Score],tblClassScores[Class],Calculations!$C23,tblClassScores[Type],Calculations!AH$5)*Settings!J26,"") ->  | AI23: =IFERROR(AVERAGEIFS(tblClassScores[Score],tblClassScores[Class],Calculations!$C23,tblClassScores[Type],Calculations!AI$5)*Settings!K26,"") ->  | AJ23: 0 | AK23: =SUMIFS(Settings!E26:K26,Calculations!AC23:AI23,">0") -> 0
C24: =IF(Settings!C27="","",Settings!C27) ->  | AC24: =IFERROR(AVERAGEIFS(tblClassScores[Score],tblClassScores[Class],Calculations!$C24,tblClassScores[Type],Calculations!AC$5)*Settings!E27,"") ->  | AD24: =IFERROR(AVERAGEIFS(tblClassScores[Score],tblClassScores[Class],Calculations!$C24,tblClassScores[Type],Calculations!AD$5)*Settings!F27,"") ->  | AE24: =IFERROR(AVERAGEIFS(tblClassScores[Score],tblClassScores[Class],Calculations!$C24,tblClassScores[Type],Calculations!AE$5)*Settings!G27,"") ->  | AF24: =IFERROR(AVERAGEIFS(tblClassScores[Score],tblClassScores[Class],Calculations!$C24,tblClassScores[Type],Calculations!AF$5)*Settings!H27,"") ->  | AG24: =IFERROR(AVERAGEIFS(tblClassScores[Score],tblClassScores[Class],Calculations!$C24,tblClassScores[Type],Calculations!AG$5)*Settings!I27,"") ->  | AH24: =IFERROR(AVERAGEIFS(tblClassScores[Score],tblClassScores[Class],Calculations!$C24,tblClassScores[Type],Calculations!AH$5)*Settings!J27,"") ->  | AI24: =IFERROR(AVERAGEIFS(tblClassScores[Score],tblClassScores[Class],Calculations!$C24,tblClassScores[Type],Calculations!AI$5)*Settings!K27,"") ->  | AJ24: 0 | AK24: =SUMIFS(Settings!E27:K27,Calculations!AC24:AI24,">0") -> 0
C25: =IF(Settings!C28="","",Settings!C28) ->  | AC25: =IFERROR(AVERAGEIFS(tblClassScores[Score],tblClassScores[Class],Calculations!$C25,tblClassScores[Type],Calculations!AC$5)*Settings!E28,"") ->  | AD25: =IFERROR(AVERAGEIFS(tblClassScores[Score],tblClassScores[Class],Calculations!$C25,tblClassScores[Type],Calculations!AD$5)*Settings!F28,"") ->  | AE25: =IFERROR(AVERAGEIFS(tblClassScores[Score],tblClassScores[Class],Calculations!$C25,tblClassScores[Type],Calculations!AE$5)*Settings!G28,"") ->  | AF25: =IFERROR(AVERAGEIFS(tblClassScores[Score],tblClassScores[Class],Calculations!$C25,tblClassScores[Type],Calculations!AF$5)*Settings!H28,"") ->  | AG25: =IFERROR(AVERAGEIFS(tblClassScores[Score],tblClassScores[Class],Calculations!$C25,tblClassScores[Type],Calculations!AG$5)*Settings!I28,"") ->  | AH25: =IFERROR(AVERAGEIFS(tblClassScores[Score],tblClassScores[Class],Calculations!$C25,tblClassScores[Type],Calculations!AH$5)*Settings!J28,"") ->  | AI25: =IFERROR(AVERAGEIFS(tblClassScores[Score],tblClassScores[Class],Calculations!$C25,tblClassScores[Type],Calculations!AI$5)*Settings!K28,"") ->  | AJ25: 0 | AK25: =SUMIFS(Settings!E28:K28,Calculations!AC25:AI25,">0") -> 0
C26: =IF(Settings!C29="","",Settings!C29) ->  | AC26: =IFERROR(AVERAGEIFS(tblClassScores[Score],tblClassScores[Class],Calculations!$C26,tblClassScores[Type],Calculations!AC$5)*Settings!E29,"") ->  | AD26: =IFERROR(AVERAGEIFS(tblClassScores[Score],tblClassScores[Class],Calculations!$C26,tblClassScores[Type],Calculations!AD$5)*Settings!F29,"") ->  | AE26: =IFERROR(AVERAGEIFS(tblClassScores[Score],tblClassScores[Class],Calculations!$C26,tblClassScores[Type],Calculations!AE$5)*Settings!G29,"") ->  | AF26: =IFERROR(AVERAGEIFS(tblClassScores[Score],tblClassScores[Class],Calculations!$C26,tblClassScores[Type],Calculations!AF$5)*Settings!H29,"") ->  | AG26: =IFERROR(AVERAGEIFS(tblClassScores[Score],tblClassScores[Class],Calculations!$C26,tblClassScores[Type],Calculations!AG$5)*Settings!I29,"") ->  | AH26: =IFERROR(AVERAGEIFS(tblClassScores[Score],tblClassScores[Class],Calculations!$C26,tblClassScores[Type],Calculations!AH$5)*Settings!J29,"") ->  | AI26: =IFERROR(AVERAGEIFS(tblClassScores[Score],tblClassScores[Class],Calculations!$C26,tblClassScores[Type],Calculations!AI$5)*Settings!K29,"") ->  | AJ26: 0 | AK26: =SUMIFS(Settings!E29:K29,Calculations!AC26:AI26,">0") -> 0
C27: =IF(Settings!C30="","",Settings!C30) ->  | AC27: =IFERROR(AVERAGEIFS(tblClassScores[Score],tblClassScores[Class],Calculations!$C27,tblClassScores[Type],Calculations!AC$5)*Settings!E30,"") ->  | AD27: =IFERROR(AVERAGEIFS(tblClassScores[Score],tblClassScores[Class],Calculations!$C27,tblClassScores[Type],Calculations!AD$5)*Settings!F30,"") ->  | AE27: =IFERROR(AVERAGEIFS(tblClassScores[Score],tblClassScores[Class],Calculations!$C27,tblClassScores[Type],Calculations!AE$5)*Settings!G30,"") ->  | AF27: =IFERROR(AVERAGEIFS(tblClassScores[Score],tblClassScores[Class],Calculations!$C27,tblClassScores[Type],Calculations!AF$5)*Settings!H30,"") ->  | AG27: =IFERROR(AVERAGEIFS(tblClassScores[Score],tblClassScores[Class],Calculations!$C27,tblClassScores[Type],Calculations!AG$5)*Settings!I30,"") ->  | AH27: =IFERROR(AVERAGEIFS(tblClassScores[Score],tblClassScores[Class],Calculations!$C27,tblClassScores[Type],Calculations!AH$5)*Settings!J30,"") ->  | AI27: =IFERROR(AVERAGEIFS(tblClassScores[Score],tblClassScores[Class],Calculations!$C27,tblClassScores[Type],Calculations!AI$5)*Settings!K30,"") ->  | AJ27: 0 | AK27: =SUMIFS(Settings!E30:K30,Calculations!AC27:AI27,">0") -> 0
C28: =IF(Settings!C31="","",Settings!C31) ->  | AC28: =IFERROR(AVERAGEIFS(tblClassScores[Score],tblClassScores[Class],Calculations!$C28,tblClassScores[Type],Calculations!AC$5)*Settings!E31,"") ->  | AD28: =IFERROR(AVERAGEIFS(tblClassScores[Score],tblClassScores[Class],Calculations!$C28,tblClassScores[Type],Calculations!AD$5)*Settings!F31,"") ->  | AE28: =IFERROR(AVERAGEIFS(tblClassScores[Score],tblClassScores[Class],Calculations!$C28,tblClassScores[Type],Calculations!AE$5)*Settings!G31,"") ->  | AF28: =IFERROR(AVERAGEIFS(tblClassScores[Score],tblClassScores[Class],Calculations!$C28,tblClassScores[Type],Calculations!AF$5)*Settings!H31,"") ->  | AG28: =IFERROR(AVERAGEIFS(tblClassScores[Score],tblClassScores[Class],Calculations!$C28,tblClassScores[Type],Calculations!AG$5)*Settings!I31,"") ->  | AH28: =IFERROR(AVERAGEIFS(tblClassScores[Score],tblClassScores[Class],Calculations!$C28,tblClassScores[Type],Calculations!AH$5)*Settings!J31,"") ->  | AI28: =IFERROR(AVERAGEIFS(tblClassScores[Score],tblClassScores[Class],Calculations!$C28,tblClassScores[Type],Calculations!AI$5)*Settings!K31,"") ->  | AJ28: 0 | AK28: =SUMIFS(Settings!E31:K31,Calculations!AC28:AI28,">0") -> 0
C29: =IF(Settings!C32="","",Settings!C32) ->  | AC29: =IFERROR(AVERAGEIFS(tblClassScores[Score],tblClassScores[Class],Calculations!$C29,tblClassScores[Type],Calculations!AC$5)*Settings!E32,"") ->  | AD29: =IFERROR(AVERAGEIFS(tblClassScores[Score],tblClassScores[Class],Calculations!$C29,tblClassScores[Type],Calculations!AD$5)*Settings!F32,"") ->  | AE29: =IFERROR(AVERAGEIFS(tblClassScores[Score],tblClassScores[Class],Calculations!$C29,tblClassScores[Type],Calculations!AE$5)*Settings!G32,"") ->  | AF29: =IFERROR(AVERAGEIFS(tblClassScores[Score],tblClassScores[Class],Calculations!$C29,tblClassScores[Type],Calculations!AF$5)*Settings!H32,"") ->  | AG29: =IFERROR(AVERAGEIFS(tblClassScores[Score],tblClassScores[Class],Calculations!$C29,tblClassScores[Type],Calculations!AG$5)*Settings!I32,"") ->  | AH29: =IFERROR(AVERAGEIFS(tblClassScores[Score],tblClassScores[Class],Calculations!$C29,tblClassScores[Type],Calculations!AH$5)*Settings!J32,"") ->  | AI29: =IFERROR(AVERAGEIFS(tblClassScores[Score],tblClassScores[Class],Calculations!$C29,tblClassScores[Type],Calculations!AI$5)*Settings!K32,"") ->  | AJ29: 0 | AK29: =SUMIFS(Settings!E32:K32,Calculations!AC29:AI29,">0") -> 0
C30: =IF(Settings!C33="","",Settings!C33) ->  | AC30: =IFERROR(AVERAGEIFS(tblClassScores[Score],tblClassScores[Class],Calculations!$C30,tblClassScores[Type],Calculations!AC$5)*Settings!E33,"") ->  | AD30: =IFERROR(AVERAGEIFS(tblClassScores[Score],tblClassScores[Class],Calculations!$C30,tblClassScores[Type],Calculations!AD$5)*Settings!F33,"") ->  | AE30: =IFERROR(AVERAGEIFS(tblClassScores[Score],tblClassScores[Class],Calculations!$C30,tblClassScores[Type],Calculations!AE$5)*Settings!G33,"") ->  | AF30: =IFERROR(AVERAGEIFS(tblClassScores[Score],tblClassScores[Class],Calculations!$C30,tblClassScores[Type],Calculations!AF$5)*Settings!H33,"") ->  | AG30: =IFERROR(AVERAGEIFS(tblClassScores[Score],tblClassScores[Class],Calculations!$C30,tblClassScores[Type],Calculations!AG$5)*Settings!I33,"") ->  | AH30: =IFERROR(AVERAGEIFS(tblClassScores[Score],tblClassScores[Class],Calculations!$C30,tblClassScores[Type],Calculations!AH$5)*Settings!J33,"") ->  | AI30: =IFERROR(AVERAGEIFS(tblClassScores[Score],tblClassScores[Class],Calculations!$C30,tblClassScores[Type],Calculations!AI$5)*Settings!K33,"") ->  | AJ30: 0 | AK30: =SUMIFS(Settings!E33:K33,Calculations!AC30:AI30,">0") -> 0
B33: 1 | C33: ='Score Tracker'!C4&COUNTIF('Score Tracker'!$C$4:C4,'Score Tracker'!C4) -> Modern French1
B34: 2 | C34: ='Score Tracker'!C5&COUNTIF('Score Tracker'!$C$4:C5,'Score Tracker'!C5) -> Advanced Programming in Java1
B35: 3 | C35: ='Score Tracker'!C6&COUNTIF('Score Tracker'!$C$4:C6,'Score Tracker'!C6) -> Spanish1
B36: 4 | C36: ='Score Tracker'!C7&COUNTIF('Score Tracker'!$C$4:C7,'Score Tracker'!C7) -> Theoretical Physics1
B37: 5 | C37: ='Score Tracker'!C8&COUNTIF('Score Tracker'!$C$4:C8,'Score Tracker'!C8) -> Modern French2
B38: 6 | C38: ='Score Tracker'!C9&COUNTIF('Score Tracker'!$C$4:C9,'Score Tracker'!C9) -> Modern French3
B39: 7 | C39: ='Score Tracker'!C10&COUNTIF('Score Tracker'!$C$4:C10,'Score Tracker'!C10) -> Composition1
B40: 8 | C40: ='Score Tracker'!C11&COUNTIF('Score Tracker'!$C$4:C11,'Score Tracker'!C11) -> Mathematics 11
B41: 9 | C41: ='Score Tracker'!C12&COUNTIF('Score Tracker'!$C$4:C12,'Score Tracker'!C12) -> Mathematics 21
B42: 10 | C42: ='Score Tracker'!C13&COUNTIF('Score Tracker'!$C$4:C14,'Score Tracker'!C13) -> Mathematics 12
B43: 11 | C43: ='Score Tracker'!C14&COUNTIF('Score Tracker'!$C$4:C14,'Score Tracker'!C14) -> Mathematics 22
B44: 12 | C44: ='Score Tracker'!C15&COUNTIF('Score Tracker'!$C$4:C15,'Score Tracker'!C15) -> 0
B45: 13 | C45: ='Score Tracker'!C16&COUNTIF('Score Tracker'!$C$4:C16,'Score Tracker'!C16) -> 0
B46: 14 | C46: ='Score Tracker'!C17&COUNTIF('Score Tracker'!$C$4:C17,'Score Tracker'!C17) -> 0
B47: 15 | C47: ='Score Tracker'!C18&COUNTIF('Score Tracker'!$C$4:C18,'Score Tracker'!C18) -> 0
B48: 16 | C48: ='Score Tracker'!C19&COUNTIF('Score Tracker'!$C$4:C19,'Score Tracker'!C19) -> 0
B49: 17 | C49: ='Score Tracker'!C20&COUNTIF('Score Tracker'!$C$4:C20,'Score Tracker'!C20) -> 0
B50: 18 | C50: ='Score Tracker'!C21&COUNTIF('Score Tracker'!$C$4:C21,'Score Tracker'!C21) -> 0
B51: 19 | C51: ='Score Tracker'!C22&COUNTIF('Score Tracker'!$C$4:C22,'Score Tracker'!C22) -> 0
B52: 20 | C52: ='Score Tracker'!C23&COUNTIF('Score Tracker'!$C$4:C23,'Score Tracker'!C23) -> 0
B53: 21 | C53: ='Score Tracker'!C24&COUNTIF('Score Tracker'!$C$4:C24,'Score Tracker'!C24) -> 0
B54: 22 | C54: ='Score Tracker'!C25&COUNTIF('Score Tracker'!$C$4:C25,'Score Tracker'!C25) -> 0
B55: 23 | C55: ='Score Tracker'!C26&COUNTIF('Score Tracker'!$C$4:C26,'Score Tracker'!C26) -> 0
B56: 24 | C56: ='Score Tracker'!C27&COUNTIF('Score Tracker'!$C$4:C27,'Score Tracker'!C27) -> 0
B57: 25 | C57: ='Score Tracker'!C28&COUNTIF('Score Tracker'!$C$4:C28,'Score Tracker'!C28) -> 0
B58: 26 | C58: ='Score Tracker'!C29&COUNTIF('Score Tracker'!$C$4:C29,'Score Tracker'!C29) -> 0
B59: 27 | C59: ='Score Tracker'!C30&COUNTIF('Score Tracker'!$C$4:C30,'Score Tracker'!C30) -> 0
B60: 28 | C60: ='Score Tracker'!C31&COUNTIF('Score Tracker'!$C$4:C31,'Score Tracker'!C31) -> 0
B61: 29 | C61: ='Score Tracker'!C32&COUNTIF('Score Tracker'!$C$4:C32,'Score Tracker'!C32) -> 0
B62: 30 | C62: ='Score Tracker'!C33&COUNTIF('Score Tracker'!$C$4:C33,'Score Tracker'!C33) -> 0
B63: 31 | C63: ='Score Tracker'!C34&COUNTIF('Score Tracker'!$C$4:C34,'Score Tracker'!C34) -> 0
B64: 32 | C64: ='Score Tracker'!C35&COUNTIF('Score Tracker'!$C$4:C35,'Score Tracker'!C35) -> 0
B65: 33 | C65: ='Score Tracker'!C36&COUNTIF('Score Tracker'!$C$4:C36,'Score Tracker'!C36) -> 0
B66: 34 | C66: ='Score Tracker'!C37&COUNTIF('Score Tracker'!$C$4:C37,'Score Tracker'!C37) -> 0
B67: 35 | C67: ='Score Tracker'!C38&COUNTIF('Score Tracker'!$C$4:C38,'Score Tracker'!C38) -> 0
B68: 36 | C68: ='Score Tracker'!C39&COUNTIF('Score Tracker'!$C$4:C39,'Score Tracker'!C39) -> 0
B69: 37 | C69: ='Score Tracker'!C40&COUNTIF('Score Tracker'!$C$4:C40,'Score Tracker'!C40) -> 0
B70: 38 | C70: ='Score Tracker'!C41&COUNTIF('Score Tracker'!$C$4:C41,'Score Tracker'!C41) -> 0
B71: 39 | C71: ='Score Tracker'!C42&COUNTIF('Score Tracker'!$C$4:C42,'Score Tracker'!C42) -> 0
B72: 40 | C72: ='Score Tracker'!C43&COUNTIF('Score Tracker'!$C$4:C43,'Score Tracker'!C43) -> 0
B73: 41 | C73: ='Score Tracker'!C44&COUNTIF('Score Tracker'!$C$4:C44,'Score Tracker'!C44) -> 0
B74: 42 | C74: ='Score Tracker'!C45&COUNTIF('Score Tracker'!$C$4:C45,'Score Tracker'!C45) -> 0
B75: 43 | C75: ='Score Tracker'!C46&COUNTIF('Score Tracker'!$C$4:C46,'Score Tracker'!C46) -> 0
B76: 44 | C76: ='Score Tracker'!C47&COUNTIF('Score Tracker'!$C$4:C47,'Score Tracker'!C47) -> 0
B77: 45 | C77: ='Score Tracker'!C48&COUNTIF('Score Tracker'!$C$4:C48,'Score Tracker'!C48) -> 0
B78: 46 | C78: ='Score Tracker'!C49&COUNTIF('Score Tracker'!$C$4:C49,'Score Tracker'!C49) -> 0
B79: 47 | C79: ='Score Tracker'!C50&COUNTIF('Score Tracker'!$C$4:C50,'Score Tracker'!C50) -> 0
B80: 48 | C80: ='Score Tracker'!C51&COUNTIF('Score Tracker'!$C$4:C51,'Score Tracker'!C51) -> 0
B81: 49 | C81: ='Score Tracker'!C52&COUNTIF('Score Tracker'!$C$4:C52,'Score Tracker'!C52) -> 0
B82: 50 | C82: ='Score Tracker'!C53&COUNTIF('Score Tracker'!$C$4:C53,'Score Tracker'!C53) -> 0
B83: 51 | C83: ='Score Tracker'!C54&COUNTIF('Score Tracker'!$C$4:C54,'Score Tracker'!C54) -> 0
B84: 52 | C84: ='Score Tracker'!C55&COUNTIF('Score Tracker'!$C$4:C55,'Score Tracker'!C55) -> 0
B85: 53 | C85: ='Score Tracker'!C56&COUNTIF('Score Tracker'!$C$4:C56,'Score Tracker'!C56) -> 0
B86: 54 | C86: ='Score Tracker'!C57&COUNTIF('Score Tracker'!$C$4:C57,'Score Tracker'!C57) -> 0
B87: 55 | C87: ='Score Tracker'!C58&COUNTIF('Score Tracker'!$C$4:C58,'Score Tracker'!C58) -> 0
B88: 56 | C88: ='Score Tracker'!C59&COUNTIF('Score Tracker'!$C$4:C59,'Score Tracker'!C59) -> 0
B89: 57 | C89: ='Score Tracker'!C60&COUNTIF('Score Tracker'!$C$4:C60,'Score Tracker'!C60) -> 0
B90: 58 | C90: ='Score Tracker'!C61&COUNTIF('Score Tracker'!$C$4:C61,'Score Tracker'!C61) -> 0
B91: 59 | C91: ='Score Tracker'!C62&COUNTIF('Score Tracker'!$C$4:C62,'Score Tracker'!C62) -> 0
B92: 60 | C92: ='Score Tracker'!C63&COUNTIF('Score Tracker'!$C$4:C63,'Score Tracker'!C63) -> 0
B93: 61 | C93: ='Score Tracker'!C64&COUNTIF('Score Tracker'!$C$4:C64,'Score Tracker'!C64) -> 0
B94: 62 | C94: ='Score Tracker'!C65&COUNTIF('Score Tracker'!$C$4:C65,'Score Tracker'!C65) -> 0
B95: 63 | C95: ='Score Tracker'!C66&COUNTIF('Score Tracker'!$C$4:C66,'Score Tracker'!C66) -> 0
B96: 64 | C96: ='Score Tracker'!C67&COUNTIF('Score Tracker'!$C$4:C67,'Score Tracker'!C67) -> 0
B97: 65 | C97: ='Score Tracker'!C68&COUNTIF('Score Tracker'!$C$4:C68,'Score Tracker'!C68) -> 0
B98: 66 | C98: ='Score Tracker'!C69&COUNTIF('Score Tracker'!$C$4:C69,'Score Tracker'!C69) -> 0
B99: 67 | C99: ='Score Tracker'!C70&COUNTIF('Score Tracker'!$C$4:C70,'Score Tracker'!C70) -> 0
B100: 68 | C100: ='Score Tracker'!C71&COUNTIF('Score Tracker'!$C$4:C71,'Score Tracker'!C71) -> 0
B101: 69 | C101: ='Score Tracker'!C72&COUNTIF('Score Tracker'!$C$4:C72,'Score Tracker'!C72) -> 0
B102: 70 | C102: ='Score Tracker'!C73&COUNTIF('Score Tracker'!$C$4:C73,'Score Tracker'!C73) -> 0
B103: 71 | C103: ='Score Tracker'!C74&COUNTIF('Score Tracker'!$C$4:C74,'Score Tracker'!C74) -> 0
B104: 72 | C104: ='Score Tracker'!C75&COUNTIF('Score Tracker'!$C$4:C75,'Score Tracker'!C75) -> 0
B105: 73 | C105: ='Score Tracker'!C76&COUNTIF('Score Tracker'!$C$4:C76,'Score Tracker'!C76) -> 0
B106: 74 | C106: ='Score Tracker'!C77&COUNTIF('Score Tracker'!$C$4:C77,'Score Tracker'!C77) -> 0
B107: 75 | C107: ='Score Tracker'!C78&COUNTIF('Score Tracker'!$C$4:C78,'Score Tracker'!C78) -> 0
B108: 76 | C108: ='Score Tracker'!C79&COUNTIF('Score Tracker'!$C$4:C79,'Score Tracker'!C79) -> 0
B109: 77 | C109: ='Score Tracker'!C80&COUNTIF('Score Tracker'!$C$4:C80,'Score Tracker'!C80) -> 0
B110: 78 | C110: ='Score Tracker'!C81&COUNTIF('Score Tracker'!$C$4:C81,'Score Tracker'!C81) -> 0
B111: 79 | C111: ='Score Tracker'!C82&COUNTIF('Score Tracker'!$C$4:C82,'Score Tracker'!C82) -> 0
B112: 80 | C112: ='Score Tracker'!C83&COUNTIF('Score Tracker'!$C$4:C83,'Score Tracker'!C83) -> 0
B113: 81 | C113: ='Score Tracker'!C84&COUNTIF('Score Tracker'!$C$4:C84,'Score Tracker'!C84) -> 0
B114: 82 | C114: ='Score Tracker'!C85&COUNTIF('Score Tracker'!$C$4:C85,'Score Tracker'!C85) -> 0
B115: 83 | C115: ='Score Tracker'!C86&COUNTIF('Score Tracker'!$C$4:C86,'Score Tracker'!C86) -> 0
B116: 84 | C116: ='Score Tracker'!C87&COUNTIF('Score Tracker'!$C$4:C87,'Score Tracker'!C87) -> 0
B117: 85 | C117: ='Score Tracker'!C88&COUNTIF('Score Tracker'!$C$4:C88,'Score Tracker'!C88) -> 0
B118: 86 | C118: ='Score Tracker'!C89&COUNTIF('Score Tracker'!$C$4:C89,'Score Tracker'!C89) -> 0
B119: 87 | C119: ='Score Tracker'!C90&COUNTIF('Score Tracker'!$C$4:C90,'Score Tracker'!C90) -> 0
B120: 88 | C120: ='Score Tracker'!C91&COUNTIF('Score Tracker'!$C$4:C91,'Score Tracker'!C91) -> 0
B121: 89 | C121: ='Score Tracker'!C92&COUNTIF('Score Tracker'!$C$4:C92,'Score Tracker'!C92) -> 0
B122: 90 | C122: ='Score Tracker'!C93&COUNTIF('Score Tracker'!$C$4:C93,'Score Tracker'!C93) -> 0
B123: 91 | C123: ='Score Tracker'!C94&COUNTIF('Score Tracker'!$C$4:C94,'Score Tracker'!C94) -> 0
B124: 92 | C124: ='Score Tracker'!C95&COUNTIF('Score Tracker'!$C$4:C95,'Score Tracker'!C95) -> 0
B125: 93 | C125: ='Score Tracker'!C96&COUNTIF('Score Tracker'!$C$4:C96,'Score Tracker'!C96) -> 0
B126: 94 | C126: ='Score Tracker'!C97&COUNTIF('Score Tracker'!$C$4:C97,'Score Tracker'!C97) -> 0
B127: 95 | C127: ='Score Tracker'!C98&COUNTIF('Score Tracker'!$C$4:C98,'Score Tracker'!C98) -> 0
B128: 96 | C128: ='Score Tracker'!C99&COUNTIF('Score Tracker'!$C$4:C99,'Score Tracker'!C99) -> 0
B129: 97 | C129: ='Score Tracker'!C100&COUNTIF('Score Tracker'!$C$4:C100,'Score Tracker'!C100) -> 0
B130: 98 | C130: ='Score Tracker'!C101&COUNTIF('Score Tracker'!$C$4:C101,'Score Tracker'!C101) -> 0
B131: 99 | C131: ='Score Tracker'!C102&COUNTIF('Score Tracker'!$C$4:C102,'Score Tracker'!C102) -> 0
B132: 100 | C132: ='Score Tracker'!C103&COUNTIF('Score Tracker'!$C$4:C103,'Score Tracker'!C103) -> 0
B133: 101 | C133: ='Score Tracker'!C104&COUNTIF('Score Tracker'!$C$4:C104,'Score Tracker'!C104) -> 0
B134: 102 | C134: ='Score Tracker'!C105&COUNTIF('Score Tracker'!$C$4:C105,'Score Tracker'!C105) -> 0
B135: 103 | C135: ='Score Tracker'!C106&COUNTIF('Score Tracker'!$C$4:C106,'Score Tracker'!C106) -> 0
B136: 104 | C136: ='Score Tracker'!C107&COUNTIF('Score Tracker'!$C$4:C107,'Score Tracker'!C107) -> 0
B137: 105 | C137: ='Score Tracker'!C108&COUNTIF('Score Tracker'!$C$4:C108,'Score Tracker'!C108) -> 0
B138: 106 | C138: ='Score Tracker'!C109&COUNTIF('Score Tracker'!$C$4:C109,'Score Tracker'!C109) -> 0
B139: 107 | C139: ='Score Tracker'!C110&COUNTIF('Score Tracker'!$C$4:C110,'Score Tracker'!C110) -> 0
B140: 108 | C140: ='Score Tracker'!C111&COUNTIF('Score Tracker'!$C$4:C111,'Score Tracker'!C111) -> 0
B141: 109 | C141: ='Score Tracker'!C112&COUNTIF('Score Tracker'!$C$4:C112,'Score Tracker'!C112) -> 0
B142: 110 | C142: ='Score Tracker'!C113&COUNTIF('Score Tracker'!$C$4:C113,'Score Tracker'!C113) -> 0
B143: 111 | C143: ='Score Tracker'!C114&COUNTIF('Score Tracker'!$C$4:C114,'Score Tracker'!C114) -> 0
B144: 112 | C144: ='Score Tracker'!C115&COUNTIF('Score Tracker'!$C$4:C115,'Score Tracker'!C115) -> 0
B145: 113 | C145: ='Score Tracker'!C116&COUNTIF('Score Tracker'!$C$4:C116,'Score Tracker'!C116) -> 0
B146: 114 | C146: ='Score Tracker'!C117&COUNTIF('Score Tracker'!$C$4:C117,'Score Tracker'!C117) -> 0
B147: 115 | C147: ='Score Tracker'!C118&COUNTIF('Score Tracker'!$C$4:C118,'Score Tracker'!C118) -> 0
B148: 116 | C148: ='Score Tracker'!C119&COUNTIF('Score Tracker'!$C$4:C119,'Score Tracker'!C119) -> 0
B149: 117 | C149: ='Score Tracker'!C120&COUNTIF('Score Tracker'!$C$4:C120,'Score Tracker'!C120) -> 0
B150: 118 | C150: ='Score Tracker'!C121&COUNTIF('Score Tracker'!$C$4:C121,'Score Tracker'!C121) -> 0
B151: 119 | C151: ='Score Tracker'!C122&COUNTIF('Score Tracker'!$C$4:C122,'Score Tracker'!C122) -> 0
B152: 120 | C152: ='Score Tracker'!C123&COUNTIF('Score Tracker'!$C$4:C123,'Score Tracker'!C123) -> 0
B153: 121 | C153: ='Score Tracker'!C124&COUNTIF('Score Tracker'!$C$4:C124,'Score Tracker'!C124) -> 0
B154: 122 | C154: ='Score Tracker'!C125&COUNTIF('Score Tracker'!$C$4:C125,'Score Tracker'!C125) -> 0
B155: 123 | C155: ='Score Tracker'!C126&COUNTIF('Score Tracker'!$C$4:C126,'Score Tracker'!C126) -> 0
B156: 124 | C156: ='Score Tracker'!C127&COUNTIF('Score Tracker'!$C$4:C127,'Score Tracker'!C127) -> 0
B157: 125 | C157: ='Score Tracker'!C128&COUNTIF('Score Tracker'!$C$4:C128,'Score Tracker'!C128) -> 0
B158: 126 | C158: ='Score Tracker'!C129&COUNTIF('Score Tracker'!$C$4:C129,'Score Tracker'!C129) -> 0
B159: 127 | C159: ='Score Tracker'!C130&COUNTIF('Score Tracker'!$C$4:C130,'Score Tracker'!C130) -> 0
B160: 128 | C160: ='Score Tracker'!C131&COUNTIF('Score Tracker'!$C$4:C131,'Score Tracker'!C131) -> 0
B161: 129 | C161: ='Score Tracker'!C132&COUNTIF('Score Tracker'!$C$4:C132,'Score Tracker'!C132) -> 0
B162: 130 | C162: ='Score Tracker'!C133&COUNTIF('Score Tracker'!$C$4:C133,'Score Tracker'!C133) -> 0
B163: 131 | C163: ='Score Tracker'!C134&COUNTIF('Score Tracker'!$C$4:C134,'Score Tracker'!C134) -> 0
B164: 132 | C164: ='Score Tracker'!C135&COUNTIF('Score Tracker'!$C$4:C135,'Score Tracker'!C135) -> 0
B165: 133 | C165: ='Score Tracker'!C136&COUNTIF('Score Tracker'!$C$4:C136,'Score Tracker'!C136) -> 0
B166: 134 | C166: ='Score Tracker'!C137&COUNTIF('Score Tracker'!$C$4:C137,'Score Tracker'!C137) -> 0
B167: 135 | C167: ='Score Tracker'!C138&COUNTIF('Score Tracker'!$C$4:C138,'Score Tracker'!C138) -> 0
B168: 136 | C168: ='Score Tracker'!C139&COUNTIF('Score Tracker'!$C$4:C139,'Score Tracker'!C139) -> 0
B169: 137 | C169: ='Score Tracker'!C140&COUNTIF('Score Tracker'!$C$4:C140,'Score Tracker'!C140) -> 0
B170: 138 | C170: ='Score Tracker'!C141&COUNTIF('Score Tracker'!$C$4:C141,'Score Tracker'!C141) -> 0
B171: 139 | C171: ='Score Tracker'!C142&COUNTIF('Score Tracker'!$C$4:C142,'Score Tracker'!C142) -> 0
B172: 140 | C172: ='Score Tracker'!C143&COUNTIF('Score Tracker'!$C$4:C143,'Score Tracker'!C143) -> 0
B173: 141 | C173: ='Score Tracker'!C144&COUNTIF('Score Tracker'!$C$4:C144,'Score Tracker'!C144) -> 0
B174: 142 | C174: ='Score Tracker'!C145&COUNTIF('Score Tracker'!$C$4:C145,'Score Tracker'!C145) -> 0
B175: 143 | C175: ='Score Tracker'!C146&COUNTIF('Score Tracker'!$C$4:C146,'Score Tracker'!C146) -> 0
B176: 144 | C176: ='Score Tracker'!C147&COUNTIF('Score Tracker'!$C$4:C147,'Score Tracker'!C147) -> 0
B177: 145 | C177: ='Score Tracker'!C148&COUNTIF('Score Tracker'!$C$4:C148,'Score Tracker'!C148) -> 0
B178: 146 | C178: ='Score Tracker'!C149&COUNTIF('Score Tracker'!$C$4:C149,'Score Tracker'!C149) -> 0
B179: 147 | C179: ='Score Tracker'!C150&COUNTIF('Score Tracker'!$C$4:C150,'Score Tracker'!C150) -> 0
B180: 148 | C180: ='Score Tracker'!C151&COUNTIF('Score Tracker'!$C$4:C151,'Score Tracker'!C151) -> 0
B181: 149 | C181: ='Score Tracker'!C152&COUNTIF('Score Tracker'!$C$4:C152,'Score Tracker'!C152) -> 0
B182: 150 | C182: ='Score Tracker'!C153&COUNTIF('Score Tracker'!$C$4:C153,'Score Tracker'!C153) -> 0
B183: 151 | C183: ='Score Tracker'!C154&COUNTIF('Score Tracker'!$C$4:C154,'Score Tracker'!C154) -> 0
B184: 152 | C184: ='Score Tracker'!C155&COUNTIF('Score Tracker'!$C$4:C155,'Score Tracker'!C155) -> 0
B185: 153 | C185: ='Score Tracker'!C156&COUNTIF('Score Tracker'!$C$4:C156,'Score Tracker'!C156) -> 0
B186: 154 | C186: ='Score Tracker'!C157&COUNTIF('Score Tracker'!$C$4:C157,'Score Tracker'!C157) -> 0
B187: 155 | C187: ='Score Tracker'!C158&COUNTIF('Score Tracker'!$C$4:C158,'Score Tracker'!C158) -> 0
B188: 156 | C188: ='Score Tracker'!C159&COUNTIF('Score Tracker'!$C$4:C159,'Score Tracker'!C159) -> 0
B189: 157 | C189: ='Score Tracker'!C160&COUNTIF('Score Tracker'!$C$4:C160,'Score Tracker'!C160) -> 0
B190: 158 | C190: ='Score Tracker'!C161&COUNTIF('Score Tracker'!$C$4:C161,'Score Tracker'!C161) -> 0
B191: 159 | C191: ='Score Tracker'!C162&COUNTIF('Score Tracker'!$C$4:C162,'Score Tracker'!C162) -> 0
B192: 160 | C192: ='Score Tracker'!C163&COUNTIF('Score Tracker'!$C$4:C163,'Score Tracker'!C163) -> 0
B193: 161 | C193: ='Score Tracker'!C164&COUNTIF('Score Tracker'!$C$4:C164,'Score Tracker'!C164) -> 0
B194: 162 | C194: ='Score Tracker'!C165&COUNTIF('Score Tracker'!$C$4:C165,'Score Tracker'!C165) -> 0
B195: 163 | C195: ='Score Tracker'!C166&COUNTIF('Score Tracker'!$C$4:C166,'Score Tracker'!C166) -> 0
B196: 164 | C196: ='Score Tracker'!C167&COUNTIF('Score Tracker'!$C$4:C167,'Score Tracker'!C167) -> 0
B197: 165 | C197: ='Score Tracker'!C168&COUNTIF('Score Tracker'!$C$4:C168,'Score Tracker'!C168) -> 0
B198: 166 | C198: ='Score Tracker'!C169&COUNTIF('Score Tracker'!$C$4:C169,'Score Tracker'!C169) -> 0
B199: 167 | C199: ='Score Tracker'!C170&COUNTIF('Score Tracker'!$C$4:C170,'Score Tracker'!C170) -> 0
B200: 168 | C200: ='Score Tracker'!C171&COUNTIF('Score Tracker'!$C$4:C171,'Score Tracker'!C171) -> 0
B201: 169 | C201: ='Score Tracker'!C172&COUNTIF('Score Tracker'!$C$4:C172,'Score Tracker'!C172) -> 0
B202: 170 | C202: ='Score Tracker'!C173&COUNTIF('Score Tracker'!$C$4:C173,'Score Tracker'!C173) -> 0
B203: 171 | C203: ='Score Tracker'!C174&COUNTIF('Score Tracker'!$C$4:C174,'Score Tracker'!C174) -> 0
... 454 more rows
